fUST/lending_fUST_20250720
["ID","MTS","AMOUNT","RATE_DAILY","PERIOD"]
[373374523,1752976239365,-153.245442,0.0001942,2]
[373374525,1752976239374,-581.34848106,0.0001942,2]
[373374527,1752976239383,-460.0,0.0001942,2]
[373374529,1752976239392,-460.0,0.0001942,2]
[373374531,1752976239402,-151.0,0.0001942,2]
[373374533,1752976239411,-151.0,0.0001942,2]
[373374535,1752976239420,-460.0,0.0001942,2]
[373374537,1752976239429,-468.92059066,0.0001942,2]
[373374539,1752976239438,-460.0,0.0001942,2]
[373374541,1752976239447,-460.0,0.0001942,2]
[373374543,1752976239456,-151.0,0.0001942,2]
[373374545,1752976239466,-500.0,0.00019421,2]
[373374547,1752976239475,-500.0,0.00019421,2]
[373374549,1752976239484,-152.151881,0.00019421,2]
[373374551,1752976239493,-460.0,0.00019421,2]
[373374553,1752976239502,-151.0,0.00019421,2]
[373374555,1752976239512,-1462.88,0.00019421,2]
[373374557,1752976239521,-151.0,0.00019421,2]
[373374559,1752976239530,-368.212,0.00019421,2]
[373374560,1752976239539,-368.212,0.00019421,2]
[373374563,1752976239549,-460.0,0.00019421,2]
[373374565,1752976239559,-785.26,0.00019421,2]
[373374567,1752976239568,-151.0,0.00019423,2]
[373374569,1752976239577,-500.0,0.00019423,2]
[373374571,1752976239587,-500.0,0.00019423,2]
[373374573,1752976239596,-250.0,0.00019444,2]
[373374575,1752976239605,-163.26741189,0.0001946,2]
[373374577,1752976239615,-151.0,0.00019461,2]
[373374579,1752976239624,-151.0,0.00019465,2]
[373374581,1752976239633,-160.0,0.00019465,2]
[373374583,1752976239643,-160.0,0.00019465,2]
[373374585,1752976239653,-476.34170116,0.00019465,2]
[373374587,1752976239662,-160.0,0.00019465,2]
[373374589,1752976239671,-160.0,0.00019465,2]
[373374591,1752976239680,-160.0,0.00019465,2]
[373374593,1752976239690,-230.94145789,0.00019465,2]
[373374595,1752976239699,-525.83049785,0.00019465,2]
[373374597,1752976239708,-160.0,0.00019465,2]
[373374598,1752976239717,-839.454303,0.00019465,2]
[373374600,1752976239727,-215.67360783,0.00019465,2]
[373374603,1752976239737,-12612.80205064,0.00019466,2]
[373374605,1752976239747,-214.52603969,0.00019466,2]
[373374607,1752976239757,-160.0,0.00019466,2]
[373374609,1752976239766,-500.0,0.00019473,2]
[373374611,1752976239776,-167.64803749,0.00019552,2]
[373374613,1752976239786,-9097.7699918,0.00019624,2]
[373374615,1752976239796,-460.0,0.0001969,2]
[373374617,1752976239806,-643.18,0.00019691,2]
[373374619,1752976239815,-506.87,0.00019691,2]
[373374621,1752976239825,-460.0,0.00019691,2]
[373374623,1752976239834,-460.0,0.00019691,2]
[373374625,1752976239843,-858.87,0.00019691,2]
[373374627,1752976239853,-529.06632325,0.00019691,2]
[373374629,1752976239862,-460.0,0.00019691,2]
[373374631,1752976239871,-460.0,0.00019691,2]
[373374633,1752976239882,-1345.01,0.00019691,2]
[373374635,1752976239894,-481.52864502,0.00019691,2]
[373374637,1752976239904,-460.0,0.00019691,2]
[373374639,1752976239913,-460.0,0.00019691,2]
[373374641,1752976239922,-460.0,0.00019691,2]
[373374643,1752976239932,-460.0,0.00019691,2]
[373374645,1752976239942,-460.0,0.00019692,2]
[373374647,1752976239952,-460.0,0.00019692,2]
[373374649,1752976239967,-460.0,0.00019692,2]
[373374651,1752976239977,-175.62117698,0.00019693,2]
[373374653,1752976239986,-460.0,0.00019693,2]
[373374655,1752976239996,-500.55,0.00019694,2]
[373374657,1752976240006,-798.4,0.00019694,2]
[373374659,1752976240015,-460.0,0.00019694,2]
[373374661,1752976240025,-460.0,0.00019694,2]
[373374663,1752976240034,-460.0,0.00019694,2]
[373374665,1752976240043,-460.0,0.00019694,2]
[373374667,1752976240052,-460.0,0.00019694,2]
[373374669,1752976240061,-460.0,0.00019694,2]
[373374671,1752976240070,-460.0,0.00019694,2]
[373374673,1752976240079,-460.0,0.00019694,2]
[373374675,1752976240089,-460.0,0.00019695,2]
[373374676,1752976240098,-1462.88,0.00019695,2]
[373374677,1752976240107,-460.0,0.00019695,2]
[373374678,1752976240116,-785.26,0.00019695,2]
[373374679,1752976240126,-199.77096402,0.00019697,2]
[373374680,1752976240136,-500.0,0.00019697,2]
[373374681,1752976240146,-500.0,0.00019697,2]
[373374682,1752976240155,-1000.0,0.00019706,2]
[373374684,1752976240164,-9097.7699918,0.00019866,2]
[373374686,1752976240174,-429.3901486,0.00019898,2]
[373374688,1752976240183,-429.3901486,0.00019898,2]
[373374690,1752976240192,-151.0,0.000199,2]
[373374692,1752976240201,-151.0,0.000199,2]
[373374694,1752976240211,-151.0,0.000199,2]
[373374696,1752976240220,-151.0,0.000199,2]
[373374698,1752976240229,-151.0,0.000199,2]
[373374700,1752976240239,-643.18,0.00019965,2]
[373374702,1752976240248,-506.87,0.00019965,2]
[373374704,1752976240257,-460.0,0.00019965,2]
[373374706,1752976240267,-460.0,0.00019965,2]
[373374708,1752976240277,-298.640799,0.00019965,2]
[373374710,1752976240286,-858.87,0.00019965,2]
[373374712,1752976240295,-151.0,0.00019965,2]
[373374714,1752976240304,-368.212,0.00019965,2]
[373374716,1752976240313,-460.0,0.00019965,2]
[373374718,1752976240322,-368.212,0.00019965,2]
[373374720,1752976240332,-460.0,0.00019965,2]
[373374722,1752976240341,-1345.01,0.00019965,2]
[373374724,1752976240350,-494.99542198,0.00019965,2]
[373374726,1752976240360,-460.0,0.00019965,2]
[373374728,1752976240369,-460.0,0.00019965,2]
[373374730,1752976240379,-460.0,0.00019965,2]
[373374732,1752976240388,-460.0,0.00019966,2]
[373374734,1752976240397,-477.03162213,0.00019966,2]
[373374736,1752976240407,-500.72441375,0.00019966,2]
[373374738,1752976240417,-500.0,0.00019966,2]
[373374741,1752976240427,-460.0,0.00019966,2]
[373374743,1752976240436,-460.0,0.00019967,2]
[373374745,1752976240445,-500.55,0.00019968,2]
[373374747,1752976240455,-798.4,0.00019968,2]
[373374749,1752976240465,-460.0,0.00019968,2]
[373374751,1752976240474,-460.0,0.00019968,2]
[373374753,1752976240484,-460.0,0.00019968,2]
[373374755,1752976240494,-482.10473,0.00019968,2]
[373374757,1752976240503,-482.46349302,0.00019968,2]
[373374759,1752976240513,-252.36,0.00019968,2]
[373374761,1752976240523,-460.0,0.00019968,2]
[373374763,1752976240532,-231.65033387,0.00019968,2]
[373374765,1752976240541,-460.0,0.00019969,2]
[373374767,1752976240550,-1462.88,0.00019969,2]
[373374769,1752976240559,-460.0,0.00019969,2]
[373374771,1752976240568,-785.26,0.00019969,2]
[373374773,1752976240578,-500.0,0.00019971,2]
[373374775,1752976240587,-500.0,0.00019971,2]
[373374777,1752976240596,-151.0,0.0001999,2]
[373374779,1752976240606,-8182.36496867,0.0002,2]
[373374781,1752976240615,-3193.95892131,0.0002,2]
[373374783,1752976240625,-362.6568148,0.0002,2]
[373374785,1752976240635,-71504.53584913,0.0002,2]
[373374787,1752976240644,-5929.79780296,0.0002,2]
[373374789,1752976240653,-71682.65200165,0.0002,2]
[373374791,1752976240663,-151.846081,0.0002,2]
[373374793,1752976240672,-151.304749,0.0002,2]
[373374795,1752976240682,-151.0,0.0002,2]
[373374797,1752976240691,-151.929359,0.0002,2]
[373374799,1752976240700,-300.551088,0.0002,2]
[373374801,1752976240709,-300.551088,0.0002,2]
[373374803,1752976240719,-151.0,0.0002,2]
[373374806,1752976240728,-270.483214,0.0002,2]
[373374807,1752976240737,-151.558243,0.0002,2]
[373374809,1752976240748,-151.0,0.0002,2]
[373374811,1752976240759,-151.968557,0.0002,2]
[373374814,1752976240768,-151.0,0.0002,2]
[373374816,1752976240779,-151.0,0.0002,2]
[373374818,1752976240789,-151.0,0.0002,2]
[373374820,1752976240798,-151.0,0.0002,2]
[373374822,1752976240807,-151.0,0.0002,2]
[373374834,1752976240910,-151.0,0.0002,2]
[373374836,1752976240920,-331.259801,0.0002,2]
[373374838,1752976240931,-331.259801,0.0002,2]
[373374840,1752976240940,-151.0,0.0002,2]
[373374842,1752976240949,-151.0,0.0002,2]
[373374844,1752976240959,-151.0,0.0002,2]
[373374846,1752976240968,-151.0,0.0002,2]
[373374848,1752976240978,-151.0,0.0002,2]
[373374850,1752976240987,-157.181478,0.0002,2]
[373374852,1752976240998,-152.148175,0.0002,2]
[373374854,1752976241008,-151.0,0.0002,2]
[373374856,1752976241017,-151.0,0.0002,2]
[373374858,1752976241027,-151.0,0.0002,2]
[373374860,1752976241037,-151.745177,0.0002,2]
[373374862,1752976241046,-172.425784,0.0002,2]
[373374864,1752976241056,-172.425784,0.0002,2]
[373374866,1752976241066,-172.425784,0.0002,2]
[373374868,1752976241075,-172.425784,0.0002,2]
[373374870,1752976241084,-151.0,0.0002,2]
[373374872,1752976241094,-151.0,0.0002,2]
[373374874,1752976241103,-153.174507,0.0002,2]
[373374876,1752976241112,-336.431934,0.0002,2]
[373374878,1752976241121,-336.431934,0.0002,2]
[373374880,1752976241131,-336.431934,0.0002,2]
[373374882,1752976241140,-336.431934,0.0002,2]
[373374884,1752976241150,-165.339498,0.0002,2]
[373374887,1752976241160,-165.339498,0.0002,2]
[373374889,1752976241169,-151.0,0.0002,2]
[373374891,1752976241179,-153.24464,0.0002,2]
[373374893,1752976241188,-165.339498,0.0002,2]
[373374895,1752976241198,-165.339498,0.0002,2]
[373374897,1752976241208,-151.0,0.0002,2]
[373374899,1752976241217,-151.0,0.0002,2]
[373374901,1752976241227,-215.537255,0.0002,2]
[373374903,1752976241236,-151.0,0.0002,2]
[373374905,1752976241245,-151.0,0.0002,2]
[373374907,1752976241255,-151.0,0.0002,2]
[373374909,1752976241264,-151.0,0.0002,2]
[373374911,1752976241273,-151.0,0.0002,2]
[373374913,1752976241282,-151.0,0.0002,2]
[373374915,1752976241292,-151.0,0.0002,2]
[373374917,1752976241301,-151.0,0.0002,2]
[373374919,1752976241310,-153.351511,0.0002,2]
[373374921,1752976241319,-151.632726,0.0002,2]
[373374923,1752976241329,-368.212,0.0002,2]
[373374925,1752976241338,-368.212,0.0002,2]
[373374927,1752976241348,-368.212,0.0002,2]
[373374929,1752976241358,-368.212,0.0002,2]
[373374931,1752976241367,-151.0,0.0002,2]
[373374933,1752976241376,-245.681376,0.0002,2]
[373374935,1752976241386,-151.0,0.0002,2]
[373374937,1752976241395,-151.0,0.0002,2]
[373374939,1752976241404,-151.0,0.0002,2]
[373374941,1752976241414,-153.340805,0.0002,2]
[373374943,1752976241423,-9097.7699918,0.00020107,2]
[373374945,1752976241432,-959.4,0.00020229,3]
[373374947,1752976241441,-479.7,0.00020229,3]
[373374949,1752976241450,-643.18,0.00020239,2]
[373374951,1752976241460,-506.87,0.00020239,2]
[373374953,1752976241469,-174.74724837,0.00020239,2]
[373374955,1752976241478,-261.23277615,0.00020239,2]
[373374957,1752976241487,-858.87,0.00020239,2]
[373374959,1752976241497,-460.0,0.00020239,2]
[373374961,1752976241507,-460.0,0.00020239,2]
[373374963,1752976241516,-1345.01,0.00020239,2]
[373374965,1752976241525,-460.0,0.00020239,2]
[373374967,1752976241534,-460.0,0.0002024,2]
[373374969,1752976241543,-460.0,0.0002024,2]
[373374971,1752976241554,-460.0,0.00020241,2]
[373374973,1752976241565,-500.55,0.00020242,2]
[373374975,1752976241574,-798.4,0.00020242,2]
[373374977,1752976241584,-460.0,0.00020242,2]
[373374979,1752976241595,-308.28565607,0.00020242,2]
[373374981,1752976241604,-460.0,0.00020242,2]
[373374983,1752976241613,-460.0,0.00020242,2]
[373374985,1752976241623,-460.0,0.00020243,2]
[373374987,1752976241632,-1462.88,0.00020243,2]
[373374989,1752976241641,-460.0,0.00020243,2]
[373374991,1752976241650,-785.26,0.00020243,2]
[373374993,1752976241660,-266.86276745,0.00020245,2]
[373374996,1752976241671,-500.0,0.00020245,2]
[373374998,1752976241679,-511.62682811,0.00020254,2]
[373375000,1752976241688,-420.0,0.00020275,2]
[373375002,1752976241698,-500.0,0.00020313,2]
[373375004,1752976241708,-476.34170116,0.00020314,3]
[373375006,1752976241717,-12612.80205064,0.00020314,3]
[373375008,1752976241726,-167.64803749,0.00020335,2]
[373375010,1752976241735,-9097.7699918,0.00020348,3]
[373375012,1752976241744,-306.0,0.00020411,2]
[373375014,1752976241754,-163.26741189,0.00020424,2]
[373375016,1752976241763,-500.0,0.00020498,2]
[373375018,1752976241772,-643.18,0.00020513,2]
[373375020,1752976241781,-506.87,0.00020513,2]
[373375022,1752976241790,-858.87,0.00020513,2]
[373375024,1752976241799,-460.0,0.00020513,2]
[373375026,1752976241810,-413.55433006,0.00020513,2]
[373375028,1752976241819,-1345.01,0.00020513,2]
[373375030,1752976241830,-460.0,0.00020513,2]
[373375032,1752976241839,-460.0,0.00020514,2]
[373375034,1752976241850,-460.0,0.00020514,2]
[373375035,1752976241859,-460.0,0.00020515,2]
[373375037,1752976241868,-500.0,0.00020516,2]
[373375040,1752976241878,-500.55,0.00020516,2]
[373375042,1752976241888,-798.4,0.00020516,2]
[373375044,1752976241901,-460.0,0.00020516,2]
[373375046,1752976241910,-460.0,0.00020516,2]
[373375048,1752976241919,-151.0,0.00020516,2]
[373375050,1752976241928,-368.212,0.00020516,2]
[373375052,1752976241938,-368.212,0.00020516,2]
[373375054,1752976241947,-151.0,0.00020516,2]
[373375056,1752976241956,-460.0,0.00020516,2]
[373375058,1752976241967,-460.0,0.00020517,2]
[373375060,1752976241976,-1462.88,0.00020517,2]
[373375062,1752976241985,-460.0,0.00020517,2]
[373375064,1752976241994,-785.26,0.00020517,2]
[373375066,1752976242003,-500.0,0.00020519,2]
[373375068,1752976242013,-687.1056588,0.00020521,2]
[373375070,1752976242023,-160.0,0.00020573,2]
[373375072,1752976242033,-9097.7699918,0.0002059,3]
[373375074,1752976242043,-500.0,0.00020727,2]
[373375076,1752976242053,-151.0,0.00020728,2]
[373375078,1752976242063,-300.551088,0.00020728,2]
[373375080,1752976242076,-300.551088,0.00020728,2]
[373375083,1752976242090,-152.995665,0.00020728,2]
[373375085,1752976242102,-151.0,0.00020728,2]
[373375088,1752976242115,-151.0,0.00020728,2]
[373375090,1752976242125,-151.0,0.00020728,2]
[373375092,1752976242136,-151.0,0.00020728,2]
[373375094,1752976242148,-267.564017,0.00020728,2]
[373375096,1752976242159,-172.425784,0.00020728,2]
[373375099,1752976242172,-172.425784,0.00020728,2]
[373375101,1752976242185,-151.0,0.00020728,2]
[373375104,1752976242197,-151.0,0.00020728,2]
[373375106,1752976242209,-151.0,0.00020728,2]
[373375108,1752976242221,-1160.425,0.00020778,2]
[373375111,1752976242232,-178.70934786,0.00020778,2]
[373375113,1752976242245,-643.18,0.00020787,2]
[373375115,1752976242257,-506.87,0.00020787,2]
[373375117,1752976242268,-858.87,0.00020787,2]
[373375120,1752976242279,-460.0,0.00020787,2]
[373375122,1752976242291,-1345.01,0.00020787,2]
[373375124,1752976242303,-460.0,0.00020787,2]
[373375126,1752976242315,-151.083757,0.00020788,2]
[373375129,1752976242327,-151.0,0.00020788,2]
[373375131,1752976242339,-151.0,0.00020788,2]
[373375134,1752976242351,-460.0,0.00020788,2]
[373375136,1752976242363,-460.0,0.00020789,2]
[373375138,1752976242373,-336.431934,0.0002079,2]
[373375140,1752976242384,-541.08142496,0.0002079,2]
[373375143,1752976242397,-336.431934,0.0002079,2]
[373375145,1752976242408,-165.339498,0.0002079,2]
[373375147,1752976242420,-165.339498,0.0002079,2]
[373375149,1752976242432,-500.55,0.0002079,2]
[373375152,1752976242445,-798.4,0.0002079,2]
[373375154,1752976242458,-155.98585878,0.0002079,2]
[373375156,1752976242471,-460.0,0.0002079,2]
[373375159,1752976242484,-189.644247,0.0002079,2]
[373375161,1752976242497,-368.212,0.0002079,2]
[373375163,1752976242508,-368.212,0.0002079,2]
[373375166,1752976242523,-460.0,0.0002079,2]
[373375168,1752976242533,-460.0,0.00020791,2]
[373375170,1752976242543,-1462.88,0.00020791,2]
[373375172,1752976242553,-460.0,0.00020791,2]
[373375174,1752976242564,-785.26,0.00020791,2]
[373375176,1752976242576,-253.73243802,0.00020793,2]
[373375179,1752976242589,-9097.7699918,0.00020831,4]
[373375181,1752976242601,-429.3901486,0.00020857,2]
[373375184,1752976242614,-429.3901486,0.00020857,2]
[373375187,1752976242624,-429.3901486,0.00020857,2]
[373375189,1752976242635,-429.3901486,0.00020857,2]
[373375191,1752976242646,-151.0,0.00020857,2]
[373375193,1752976242657,-151.694813,0.00020857,2]
[373375195,1752976242670,-151.0,0.00020857,2]
[373375198,1752976242681,-219.176812,0.00020857,2]
[373375200,1752976242692,-331.259801,0.00020857,2]
[373375202,1752976242702,-331.259801,0.00020857,2]
[373375204,1752976242712,-151.0,0.00020857,2]
[373375206,1752976242723,-151.652042,0.00020935,2]
[373375208,1752976242734,-3249.21134827,0.00020998,2]
[373375211,1752976242744,-3000.0,0.00021,2]
[373375213,1752976242756,-42999.05543385,0.00021,4]
[373375215,1752976242767,-151.0,0.00021,2]
[373375217,1752976242777,-151.0,0.00021,2]
[373375219,1752976242788,-151.0,0.00021,2]
[373375221,1752976242799,-300.551088,0.00021,2]
[373375223,1752976242810,-300.551088,0.00021,2]
[373375226,1752976242820,-151.0,0.00021,2]
[373375228,1752976242831,-151.0,0.00021,2]
[373375230,1752976242842,-151.0,0.00021,2]
[373375232,1752976242852,-151.0,0.00021,2]
[373375234,1752976242864,-331.259801,0.00021,2]
[373375236,1752976242875,-331.259801,0.00021,2]
[373375239,1752976242887,-151.0,0.00021,2]
[373375241,1752976242903,-266.421982,0.00021,2]
[373375243,1752976242913,-151.0,0.00021,2]
[373375245,1752976242924,-172.425784,0.00021,2]
[373375247,1752976242936,-172.425784,0.00021,2]
[373375249,1752976242946,-336.431934,0.00021,2]
[373375252,1752976242957,-336.431934,0.00021,2]
[373375254,1752976242969,-165.339498,0.00021,2]
[373375256,1752976242981,-165.339498,0.00021,2]
[373375258,1752976242992,-151.0,0.00021,2]
[373375260,1752976243004,-151.0,0.00021,2]
[373375263,1752976243015,-151.0,0.00021,2]
[373375265,1752976243026,-368.212,0.00021,2]
[373375267,1752976243036,-368.212,0.00021,2]
[373375269,1752976243047,-3000.0,0.0002101,2]
[373375271,1752976243059,-3000.0,0.0002102,2]
[373375273,1752976243070,-3000.0,0.0002103,2]
[373375276,1752976243081,-3000.0,0.0002104,2]
[373375278,1752976243092,-3000.0,0.0002105,2]
[373375280,1752976243103,-3000.0,0.0002106,2]
[373375282,1752976243115,-643.18,0.00021061,2]
[373375284,1752976243125,-506.87,0.00021061,2]
[373375286,1752976243136,-858.87,0.00021061,2]
[373375288,1752976243147,-460.0,0.00021061,2]
[373375291,1752976243158,-1345.01,0.00021061,2]
[373375293,1752976243169,-460.0,0.00021061,2]
[373375295,1752976243180,-460.0,0.00021062,2]
[373375297,1752976243191,-460.0,0.00021063,2]
[373375299,1752976243202,-500.55,0.00021064,2]
[373375301,1752976243213,-798.4,0.00021064,2]
[373375304,1752976243224,-460.0,0.00021064,2]
[373375306,1752976243235,-286.01,0.00021064,2]
[373375308,1752976243246,-500.0,0.00021065,2]
[373375310,1752976243258,-460.0,0.00021065,2]
[373375313,1752976243269,-1462.88,0.00021065,2]
[373375315,1752976243280,-460.0,0.00021065,2]
[373375317,1752976243292,-785.26,0.00021065,2]
[373375319,1752976243301,-3000.0,0.0002107,2]
[373375321,1752976243310,-151.0,0.0002107,2]
[373375323,1752976243319,-9097.7699918,0.00021072,4]
[373375324,1752976243329,-500.0,0.00021079,2]
[373375326,1752976243339,-3000.0,0.0002108,2]
[373375328,1752976243348,-500.0,0.00021087,2]
[373375330,1752976243357,-3000.0,0.0002109,2]
[373375332,1752976243367,-3000.0,0.000211,2]
[373375334,1752976243376,-3000.0,0.0002111,2]
[373375336,1752976243387,-368.212,0.0002111,2]
[373375338,1752976243396,-368.212,0.0002111,2]
[373375358,1752976243556,-167.64803749,0.00021117,2]
[373375360,1752976243568,-3000.0,0.0002112,2]
[373375362,1752976243577,-336.431934,0.0002112,2]
[373375364,1752976243587,-336.431934,0.0002112,2]
[373375366,1752976243596,-165.339498,0.0002112,2]
[373375368,1752976243605,-165.339498,0.0002112,2]
[373375370,1752976243614,-151.0,0.0002112,2]
[373375372,1752976243624,-151.0,0.0002112,2]
[373375374,1752976243633,-260.0,0.00021121,2]
[373375376,1752976243642,-3000.0,0.0002113,2]
[373375378,1752976243651,-151.0,0.0002113,2]
[373375380,1752976243660,-215.175957,0.0002113,2]
[373375382,1752976243669,-151.0,0.0002113,2]
[373375384,1752976243678,-300.551088,0.0002113,2]
[373375386,1752976243687,-300.551088,0.0002113,2]
[373375388,1752976243696,-151.0,0.0002113,2]
[373375390,1752976243706,-151.0,0.0002113,2]
[373375392,1752976243715,-239.836,0.0002113,2]
[373375394,1752976243724,-151.0,0.0002113,2]
[373375396,1752976243733,-331.259801,0.0002113,2]
[373375398,1752976243742,-331.259801,0.0002113,2]
[373375400,1752976243751,-151.0,0.0002113,2]
[373375402,1752976243761,-151.0,0.0002113,2]
[373375404,1752976243769,-172.425784,0.0002113,2]
[373375406,1752976243779,-172.425784,0.0002113,2]
[373375407,1752976243788,-151.0,0.0002113,2]
[373375409,1752976243797,-151.0,0.00021136,2]
[373375411,1752976243807,-151.0,0.00021136,2]
[373375413,1752976243816,-207.4,0.00021136,2]
[373375415,1752976243825,-151.0,0.00021136,2]
[373375417,1752976243834,-151.0,0.00021136,2]
[373375419,1752976243844,-151.0,0.00021136,2]
[373375421,1752976243853,-151.0,0.00021136,2]
[373375423,1752976243862,-151.0,0.00021136,2]
[373375425,1752976243871,-151.0,0.00021136,2]
[373375427,1752976243880,-151.0,0.00021136,2]
[373375429,1752976243894,-151.0,0.00021136,2]
[373375431,1752976243903,-151.0,0.00021136,2]
[373375433,1752976243912,-151.0,0.00021136,2]
[373375435,1752976243921,-151.0,0.00021136,2]
[373375437,1752976243930,-151.0,0.00021136,2]
[373375439,1752976243940,-151.0,0.00021136,2]
[373375441,1752976243949,-151.0,0.00021136,2]
[373375443,1752976243957,-151.0,0.00021136,2]
[373375445,1752976243966,-157.72973757,0.00021136,2]
[373375446,1752976243976,-3000.0,0.0002114,2]
[373375448,1752976243985,-151.0,0.00021141,2]
[373375450,1752976243994,-151.0,0.00021141,2]
[373375452,1752976244004,-3000.0,0.0002115,2]
[373375454,1752976244014,-3000.0,0.0002116,2]
[373375456,1752976244024,-3000.0,0.0002117,2]
[373375458,1752976244035,-151.0,0.0002117,2]
[373375460,1752976244044,-151.0,0.0002117,2]
[373375462,1752976244053,-3000.0,0.0002118,2]
[373375464,1752976244062,-3000.0,0.0002119,2]
[373375466,1752976244072,-3000.0,0.000212,2]
[373375468,1752976244081,-1153.917266,0.00021205,2]
[373375470,1752976244090,-153.0,0.00021205,2]
[373375472,1752976244099,-356.1016652,0.00021205,2]
[373375474,1752976244108,-151.610801,0.00021208,2]
[373375476,1752976244117,-368.212,0.00021208,2]
[373375478,1752976244126,-368.211999,0.00021208,2]
[373375480,1752976244135,-3000.0,0.0002121,2]
[373375481,1752976244145,-3000.0,0.0002122,2]
[373375483,1752976244153,-151.0,0.0002122,2]
[373375485,1752976244163,-151.0,0.0002122,2]
[373375487,1752976244173,-3000.0,0.0002123,2]
[373375489,1752976244183,-151.0,0.0002123,2]
[373375491,1752976244193,-196.283986,0.0002123,2]
[373375493,1752976244202,-3000.0,0.0002124,2]
[373375495,1752976244211,-172.425784,0.0002124,2]
[373375497,1752976244220,-172.425784,0.0002124,2]
[373375499,1752976244230,-336.431934,0.0002124,2]
[373375501,1752976244239,-336.431934,0.0002124,2]
[373375503,1752976244249,-165.339498,0.0002124,2]
[373375505,1752976244261,-165.339498,0.0002124,2]
[373375507,1752976244270,-151.0,0.0002124,2]
[373375509,1752976244280,-3000.0,0.0002125,2]
[373375511,1752976244291,-153.898566,0.0002125,2]
[373375513,1752976244300,-151.0,0.0002125,2]
[373375515,1752976244309,-151.0,0.0002125,2]
[373375517,1752976244318,-300.551088,0.0002125,2]
[373375519,1752976244327,-300.551088,0.0002125,2]
[373375521,1752976244336,-151.0,0.0002125,2]
[373375523,1752976244345,-151.0,0.0002125,2]
[373375525,1752976244354,-152.685262,0.0002125,2]
[373375527,1752976244364,-331.259801,0.0002125,2]
[373375529,1752976244373,-331.259801,0.0002125,2]
[373375531,1752976244383,-151.0,0.0002125,2]
[373375533,1752976244392,-151.0,0.0002125,2]
[373375535,1752976244401,-3155.7139,0.0002126,2]
[373375536,1752976244410,-151.0,0.0002126,2]
[373375538,1752976244420,-9097.7699918,0.00021314,5]
[373375540,1752976244429,-643.18,0.00021335,2]
[373375542,1752976244439,-506.87,0.00021335,2]
[373375544,1752976244448,-858.87,0.00021335,2]
[373375546,1752976244457,-460.0,0.00021335,2]
[373375548,1752976244467,-1345.01,0.00021335,2]
[373375550,1752976244478,-460.0,0.00021335,2]
[373375552,1752976244487,-433.7395544,0.00021336,2]
[373375554,1752976244497,-460.0,0.00021337,2]
[373375556,1752976244508,-500.55,0.00021338,2]
[373375558,1752976244517,-798.4,0.00021338,2]
[373375560,1752976244526,-544.52631406,0.00021338,2]
[373375562,1752976244535,-460.0,0.00021339,2]
[373375564,1752976244545,-1462.88,0.00021339,2]
[373375566,1752976244554,-460.0,0.00021339,2]